Cogmind - Beta 14 @@@ ROGUE MODE // 2025.02.28 @ 16:31:27 Player: Prakos Result: Self-destructed Performance ------------- Evolutions (5) 2500 Regions Visited (11) 2200 Robots Destroyed (48) 240 Value Destroyed (2015) 2015 Prototype IDs (3) 60 Alien Tech Used (0) 0 Bonus (987) 987 TOTAL SCORE: 8002 Bonus ------- Pacifist 200 High Alert Combat Kills 62 Follower Combat Kills 25 Entered Garrisons 200 Entered DSFs 500 Cogmind --------- Core Integrity 818/1000 Matter 275/300 Energy 26/100 System Corruption 0% Temperature Cool (0) Movement Flying (112) Ox1 Location -5/Factory Parts ------- > --- POWER (2) -------- (None) > --- PROPULSION (5) --- VTOL Module VTOL Module Xenon Bombardment Thruster > --- UTILITY (8) ------ Small Storage Unit Advanced ECM Suite System Shield System Shield Authchip [Propulsion] > --- WEAPON (2) ------- Power Maul > --- INVENTORY (8) ---- Cesium-ion Thruster Cesium-ion Thruster Improved Cesium-ion Thruster Improved Cesium-ion Thruster Advanced Weight Redist. System Peak State ------------ > --- POWER ------------ Micro Nuclear Core > --- PROPULSION ------- VTOL Module VTOL Module VTOL Module Xenon Bombardment Thruster Xenon Bombardment Thruster > --- UTILITY ---------- Small Storage Unit Advanced Sensor Array Improved Signal Interpreter Transmission Jammer Improved Propulsion Shielding System Shield System Shield Improved Corruption Screen > --- WEAPON ----------- Remote Datajack Power Maul > --- INVENTORY -------- VTOL Module Cesium-ion Thruster Cesium-ion Thruster Improved Cesium-ion Thruster Advanced Weight Redist. System Advanced ECM Suite Authchip [Propulsion] Relay Coupler [NC] [Rating: 56] Favorites ----------- Power Light Nuclear Core Engine Light Ion Engine Power Core Light Nuclear Core Propulsion VTOL Module Leg Aluminum Leg Flight Unit VTOL Module Utility Small Storage Unit Device Transmission Jammer Storage Small Storage Unit Processor Visual Processing Unit Hackware System Shield Protection Improved Propulsion Shielding Weapon Improved EM Shotgun Energy Gun Improved EM Shotgun Energy Cannon Ion Cannon Ballistic Gun Assault Rifle Launcher Rocket Launcher Special Weapon Remote Datajack Impact Weapon Power Maul Build | -11 -10 -10 -9 -9 -8 -8 -8 -7 -6 -6 -5 ------- Run | Yrd Mat Min Mat Min Mat Gar Mat Fac Fac DSF Fac Slots Evolved 10 | . . . 2 . 2 . . 2 2 . 2 Power 1 | . . . . . . . . . 1 . . Propulsion 3 | . . . 1 . 2 . . . . . . Utility 6 | . . . 1 . . . . 2 1 . 2 Weapon . | . . . . . . . . . . . . Parts Attached 74 | 6 1 . 9 6 3 7 13 9 2 4 14 Power 6 | 1 . . 1 . 1 . 1 1 1 . . Engine 2 | 1 . . 1 . . . . . . . . Core 4 | . . . . . 1 . 1 1 1 . . Reactor . | . . . . . . . . . . . . Propulsion 22 | 2 . . . 3 2 1 5 3 1 1 4 Treads . | . . . . . . . . . . . . Leg 2 | 2 . . . . . . . . . . . Wheel . | . . . . . . . . . . . . Hover . | . . . . . . . . . . . . Flight 20 | . . . . 3 2 1 5 3 1 1 4 Utility 24 | 1 . . 3 1 . . 2 5 . 3 9 Device 14 | . . . 2 1 . . 1 4 . 3 3 Storage 2 | 1 . . . . . . . . . . 1 Processor 4 | . . . 1 . . . 1 . . . 2 Hackware 3 | . . . . . . . . 1 . . 2 Protection 1 | . . . . . . . . . . . 1 Artifact . | . . . . . . . . . . . . Weapon 22 | 2 1 . 5 2 . 6 5 . . . 1 Energy Gun 10 | 2 . . 3 2 . 2 1 . . . . Energy Cannon 1 | . . . . . . . 1 . . . . Ballistic Gun 2 | . 1 . 1 . . . . . . . . Ballistic Cannon . | . . . . . . . . . . . . Launcher 2 | . . . . . . 2 . . . . . Special Weapon 1 | . . . . . . . . . . . 1 Impact Weapon 6 | . . . 1 . . 2 3 . . . . Slashing Weapon . | . . . . . . . . . . . . Piercing Weapon . | . . . . . . . . . . . . Special Melee Weapon . | . . . . . . . . . . . . Unidentified Prototypes 3 | . . . 2 . . . . . . . 1 Parts Lost 22 | . . . 1 1 . 7 . . . 2 11 Power 4 | . . . 1 . . 1 . . . . 2 Propulsion 7 | . . . . . . 4 . . . 1 2 Utility 6 | . . . . . . . . . . . 6 Weapon 5 | . . . . 1 . 2 . . . 1 1 Highest Loss Streak 6 | . . . 1 1 . 6 . . . 2 5 To Critical Strikes . | . . . . . . . . . . . . Average Slot Usage (%) 89 | . 85 85 82 95 100 93 86 100 93 94 87 Engine 4 | . 14 14 11 11 1 . . . . . . Core 4 | . . . . . 8 7 6 7 13 13 7 Leg 8 | . 28 28 22 7 . . . . . . . Flight 22 | . . . . 21 45 41 35 38 33 33 28 Device 10 | . . . 8 11 9 9 9 15 13 18 14 Storage 8 | . 14 14 11 11 9 9 9 7 6 6 4 Processor 7 | . . . 8 11 9 9 9 7 6 6 5 Hackware 3 | . . . . . . . . 7 6 6 9 Energy Gun 10 | . 25 14 17 20 18 3 9 7 6 2 . Ballistic Gun 1 | . 2 14 2 . . . . . . . . Impact Weapon 4 | . . . 1 1 . 7 6 7 6 6 5 Peak Build Rating 56 | 6 6 6 14 17 21 22 24 37 41 48 56 Average Rating 25 | 4 5 6 12 15 20 19 19 36 40 45 49 On Entrance 19 | . 6 6 6 13 16 21 12 24 37 41 46 Naked Turns . | . . . . . . . . . . . . Heaviest Build 24 | 10 11 11 18 18 16 17 20 20 24 24 24 Greatest Support 32 | 20 20 20 20 20 26 26 20 22 24 32 26 Greatest Overweight (x) 3 | 3 . . . . . . . . . . . Average Overweight (x) . | . . . . . . . . . . . . Largest Inventory Capacity 8 | 8 8 8 8 8 8 8 8 8 8 8 8 Average Capacity 7 | 7 8 8 8 8 8 8 8 8 8 8 7 Most Carried 8 | 2 3 4 8 8 7 8 8 8 7 8 8 Average Carried 6 | 1 2 3 6 6 6 7 7 7 7 7 7 Final Capacity 8 | 8 8 8 8 8 8 8 8 8 8 8 8 Final Carried 8 | 2 3 4 8 7 7 8 8 8 7 8 5 Class Distribution -------------------- 38% | Mutant 33% | Sprinter 15% | Hacker-Sprinter 11% | Scavenger-Sprinter Dominant Class ---------------- Mutant | -10/Materials Mutant | -10/Mines Mutant | -9/Materials Sprinter | -9/Mines Scavenger-Sprinter | -8/Materials Scavenger-Sprinter | -8/Garrison Sprinter | -8/Materials Sprinter | -7/Factory Sprinter | -6/Factory Sprinter | -6/DSF Hacker-Sprinter | -5/Factory Resources | -11 -10 -10 -9 -9 -8 -8 -8 -7 -6 -6 -5 ----------- Run | Yrd Mat Min Mat Min Mat Gar Mat Fac Fac DSF Fac Matter Collected 1027 | 190 . 47 165 60 30 172 147 47 . . 169 Remotely . | . . . . . . . . . . . . Salvage Created 2128 | . . . 794 229 60 245 273 47 . . 480 Parts 99 | . . . 46 18 1 15 8 2 . . 9 Haulers Intercepted 2 | . . . 2 . . . . . . . . Recyclers Shooed 1 | . . . . . . . . . . . 1 Parts Field Recycled . | . . . . . . . . . . . . Retrieved Matter . | . . . . . . . . . . . . Parts Self-Destructed . | . . . . . . . . . . . . Prevented . | . . . . . . . . . . . . Kills | -11 -10 -10 -9 -9 -8 -8 -8 -7 -6 -6 -5 ------- Run | Yrd Mat Min Mat Min Mat Gar Mat Fac Fac DSF Fac Combat Hostiles Destroyed 37 | . . . 13 9 1 6 4 1 . . 3 Melee 3 | . . . . . . . . 1 . . 2 Guns 23 | . . . 12 9 . 1 1 . . . . Cannons 1 | . . . . . . . 1 . . . . AOE 4 | . . . . . 1 3 . . . . . Classes Destroyed 10 | . . . 4 1 . 2 1 1 . . 1 Hauler 2 | . . . 2 . . . . . . . . Recycler 2 | . . . . . . . . . . . 2 Operator 1 | . . . . . . . 1 . . . . Watcher 6 | . . . 2 . . . 1 . . . 3 Swarmer 8 | . . . . 7 . 1 . . . . . Grunt 17 | . . . 10 2 1 . 4 . . . . Sentry 6 | . . . 3 . . 3 . . . . . Specialist 1 | . . . . . . 1 . . . . . Hunter 2 | . . . . . . 1 . . . . 1 Programmer 3 | . . . . . . . . 1 . . 2 Best Kill Streak 7 | . . . 7 3 1 2 3 1 . . 2 Combat Bots Only 7 | . . . 7 3 1 2 2 1 . . 1 Max Kills in Single Turn 2 | . . . 1 2 1 2 1 1 . . 1 Gunslinging 1 | . . . . 1 . . . . . . . Exploded 1 | . . . . . 1 1 . . . . . Melee 1 | . . . . . . . . 1 . . 1 Uniques/NPCs Destroyed . | . . . . . . . . . . . . Combat | -11 -10 -10 -9 -9 -8 -8 -8 -7 -6 -6 -5 -------- Run | Yrd Mat Min Mat Min Mat Gar Mat Fac Fac DSF Fac Hostile Shots Fired 205 | . 1 . 38 28 2 59 16 14 . 6 41 Missed 82 | . . . 8 11 1 25 9 10 . 2 16 Damage Taken 2237 | . 10 . 370 134 64 454 118 74 . 159 854 Core 674 | . . . 122 . 39 131 83 63 . 54 182 Absorbed by Shields . | . . . . . . . . . . . . Redirected to Shielding 116 | . . . . . . . . . . . 116 Regen/Repaired (Parts) 166 | . . . . . . . 23 . . . 143 Core Remaining (%) 84 | 100 . 100 . 69 . . 54 91 . 93 . Volleys Fired 75 | . 1 . 29 16 2 19 8 . . . . Largest 2 | . 2 . 2 2 2 2 2 . . . . Hottest 105 | . 80 . 90 90 90 78 105 . . . . Shots Fired 131 | . 2 . 58 32 4 20 15 . . . . Gun 105 | . 2 . 58 32 4 1 8 . . . . Cannon 7 | . . . . . . . 7 . . . . Launcher 19 | . . . . . . 19 . . . . . Special . | . . . . . . . . . . . . Kinetic 14 | . . . 14 . . . . . . . . Thermal 19 | . 2 . 10 . . . 7 . . . . Explosive 19 | . . . . . . 19 . . . . . Electromagnetic 79 | . . . 34 32 4 1 8 . . . . Robot Hit Streak 11 | . . . 7 8 5 11 5 . . . . Robot Miss Streak 5 | . . . 3 5 1 2 3 . . . . Penetration Max . | . . . . . . . . . . . . Secondary Targets 5 | . . . 4 1 . . . . . . . Max Gunslinging Chain 1 | . . . 1 1 . . . . . . . Shots Hit Robots 112 | . . . 46 18 4 17 13 1 . . 13 Core Hits 88 | . . . 32 14 3 29 6 1 . . 3 Critical Kills . | . . . . . . . . . . . . Critical Parts Destroyed 7 | . . . . . . 2 1 . . . 4 Critical Strikes 7 | . . . . . . 2 1 . . . 4 Smash 7 | . . . . . . 2 1 . . . 4 Melee Attacks 94 | . . . 13 . . 24 10 5 . . 42 Impact 94 | . . . 13 . . 24 10 5 . . 42 Slashing . | . . . . . . . . . . . . Piercing . | . . . . . . . . . . . . Sneak Attacks 4 | . . . . . . . . . . . 4 Combat Hostiles 1 | . . . . . . . . . . . 1 Follow-up Attacks . | . . . . . . . . . . . . Damage Inflicted 3608 | . 11 . 708 239 126 1220 353 61 . . 890 Guns 1121 | . 11 . 708 237 87 10 68 . . . . Cannons 119 | . . . . . . . 119 . . . . Explosions 797 | . . . . . 39 758 . . . . . Melee 1569 | . . . . . . 452 166 61 . . 890 Ramming 2 | . . . . 2 . . . . . . . Kinetic 109 | . . . 109 . . . . . . . . Thermal 285 | . 11 . 116 . 39 . 119 . . . . Explosive 758 | . . . . . . 758 . . . . . Electromagnetic 885 | . . . 483 237 87 10 68 . . . . Impact 1569 | . . . . . . 452 166 61 . . 890 Slashing . | . . . . . . . . . . . . Piercing . | . . . . . . . . . . . . Highest Corruption 1 | . . . . . . . . . . . 1 Average Corruption 1 | . . . . . . . . . . . 1 Corruption Purged 1 | . . . . . . . . . . . 1 Corruption Blocked 13 | . . . . . . . . . . . 13 Effects 1 | . . . . . . . . . . . 1 Parts Fused 1 | . . . . . . . . . . . 1 Overload Shots . | . . . . . . . . . . . . Overflow Damage 805 | . . . . . . 192 96 . . . 517 Projectiles . | . . . . . . . . . . . . Explosions 6 | . . . . . . 6 . . . . . Melee 799 | . . . . . . 186 96 . . . 517 Knockbacks 9 | . . . . . . 1 1 . . . 7 Impact 9 | . . . . . . 1 1 . . . 7 Kinetic . | . . . . . . . . . . . . Secondary . | . . . . . . . . . . . . Self-Inflicted Damage 113 | . . . . . 51 62 . . . . . Shots 4 | . . . . . 1 3 . . . . . Rammed . | . . . . . . . . . . . . Targets Rammed 1 | . . . . 1 . . . . . . . Kicked 1 | . . . . 1 . . . . . . . Crushed . | . . . . . . . . . . . . Highest Temperature 294 | . 18 . 294 183 87 21 200 4 19 . 29 Average Temperature 39 | . 12 . 91 54 36 4 55 2 10 . 8 Received Heat Transfer 354 | . 6 . 195 9 9 36 81 . . . 18 Effects 1 | . . . 1 . . . . . . . . Energy Bleed 1 | . . . 1 . . . . . . . . Siege Activations . | . . . . . . . . . . . . Robots Corrupted 11 | . . . 1 . . 3 2 . . . 5 Combat Hostiles 7 | . . . 1 . . 3 2 . . . 1 Parts Fried 16 | . . . . . 1 1 6 . . . 8 Impact Corruptions 28 | . . . . . . 7 5 . . . 16 Robots Melted . | . . . . . . . . . . . . Combat Hostiles . | . . . . . . . . . . . . Parts Melted . | . . . . . . . . . . . . Heat Transferred 470 | . 25 . 260 . . . 185 . . . . Parts Sabotaged . | . . . . . . . . . . . . Parts Stolen . | . . . . . . . . . . . . Parts Stripped . | . . . . . . . . . . . . Power Chain Reactions 1 | . . . . . 1 . . . . . . Alert | -11 -10 -10 -9 -9 -8 -8 -8 -7 -6 -6 -5 ------- Run | Yrd Mat Min Mat Min Mat Gar Mat Fac Fac DSF Fac Peak Influence 745 | . 33 12 284 355 161 745 597 337 40 28 281 Initial 358 | . . 12 4 52 138 114 358 271 40 28 11 Average 191 | . 22 12 166 198 150 332 423 252 40 15 106 Maximum Alert Level 3 | . . . 1 1 . 3 2 1 . . 1 Low Security (%) 54 | 100 100 100 56 51 100 26 . 18 100 100 86 Level 1 38 | . . . 43 48 . 42 61 81 . . 13 Level 2 5 | . . . . . . 24 38 . . . . Level 3 . | . . . . . . 6 . . . . . Level 4 . | . . . . . . . . . . . . Level 5 . | . . . . . . . . . . . . High Security . | . . . . . . . . . . . . Max Security . | . . . . . . . . . . . . Squads Dispatched 7 | . 1 . 2 . . . . 2 . . 2 Investigation 3 | . . . 2 . . . . . . . 1 Extermination 2 | . . . . . . . . 1 . . 1 Reinforcement 2 | . 1 . . . . . . 1 . . . Assault . | . . . . . . . . . . . . Garrison . | . . . . . . . . . . . . Intercept . | . . . . . . . . . . . . Searches Triggered . | . . . . . . . . . . . . Construction Impeded . | . . . . . . . . . . . . Haulers Reinforced . | . . . . . . . . . . . . Active Scanning Responses . | . . . . . . . . . . . . Cargo Convoy Interrupts . | . . . . . . . . . . . . Stealth | -11 -10 -10 -9 -9 -8 -8 -8 -7 -6 -6 -5 --------- Run | Yrd Mat Min Mat Min Mat Gar Mat Fac Fac DSF Fac Distress Signals 1 | . . . 1 . . . . . . . . Communications Jammed 2 | . . . . . . . . . . . 2 Distress Signals 2 | . . . . . . . . . . . 2 Times Spotted 98 | . 4 . 16 14 3 23 12 9 . 1 16 Peak Tracking Total 15 | . 3 . 7 4 2 15 5 4 . 1 10 Tactical Retreats 14 | . . . . 4 . 3 1 2 . 1 3 Traps | -11 -10 -10 -9 -9 -8 -8 -8 -7 -6 -6 -5 ------- Run | Yrd Mat Min Mat Min Mat Gar Mat Fac Fac DSF Fac Traps Triggered 4 | . . . . . . 3 . . . 1 . Indirectly . | . . . . . . . . . . . . Trap Hack Attempts . | . . . . . . . . . . . . Triggered . | . . . . . . . . . . . . Disarmed . | . . . . . . . . . . . . Reprogrammed . | . . . . . . . . . . . . Reused . | . . . . . . . . . . . . Traps Extracted . | . . . . . . . . . . . . Installed . | . . . . . . . . . . . . Triggered . | . . . . . . . . . . . . Machines | -11 -10 -10 -9 -9 -8 -8 -8 -7 -6 -6 -5 ---------- Run | Yrd Mat Min Mat Min Mat Gar Mat Fac Fac DSF Fac Machines Disabled 7 | . . . 1 . . 6 . . . . . Max in Single Turn 2 | . . . 1 . . 2 . . . . . Garrison Relay 1 | . . . . . . 1 . . . . . Phase Generator 1 | . . . . . . 1 . . . . . Machines Repaired . | . . . . . . . . . . . . Machines Dismantled . | . . . . . . . . . . . . Machines Sabotaged . | . . . . . . . . . . . . Overloaded Fab Kills . | . . . . . . . . . . . . Hacking | -11 -10 -10 -9 -9 -8 -8 -8 -7 -6 -6 -5 --------- Run | Yrd Mat Min Mat Min Mat Gar Mat Fac Fac DSF Fac Machines Accessed 36 | . 2 . 8 2 3 1 8 3 1 . 8 Terminals 21 | . 2 . 5 . 1 1 6 2 1 . 3 Fabricators 1 | . . . . . . . . . . . 1 Repair Stations 3 | . . . . . . . 1 . . . 2 Recycling Units 3 | . . . 1 . . . 1 . . . 1 Scanalyzers 5 | . . . 2 . 1 . . 1 . . 1 Garrison Access 1 | . . . . . 1 . . . . . . Total Hacks 95 | . 4 . 25 2 6 1 23 6 1 . 27 Successful 56 | . 2 . 13 2 3 1 14 4 1 . 16 Failed 39 | . 2 . 12 . 3 . 9 2 . . 11 Catastrophic 6 | . . . 3 . . . . . . . 3 Database Lockouts . | . . . . . . . . . . . . Manual 36 | . 4 . 6 . 2 . 15 1 . . 8 Terminals 51 | . 4 . 15 . 2 1 17 5 1 . 6 Fabricators 5 | . . . . . . . . . . . 5 Repair Stations 9 | . . . . . . . 4 . . . 5 Recycling Units 5 | . . . 1 . . . 2 . . . 2 Scanalyzers 21 | . . . 9 . 2 . . 1 . . 9 Garrison Access 2 | . . . . . 2 . . . . . . Terminal Hacks 15 | . . . 3 2 . 1 4 3 1 . 1 Robot Analysis 1 | . . . 1 . . . . . . . . Open Door 2 | . . . . 2 . . . . . . . Open DSF 2 | . . . . . . . . . 1 . 1 Level Access Points 2 | . . . . . . . 1 1 . . . Fabricator Index 2 | . . . 1 . . . 1 . . . . Unreport Threat 1 | . . . . . . . . 1 . . . Dispatch Records 1 | . . . . . . . . 1 . . . Registered Components 1 | . . . 1 . . . . . . . . Zone Layout 2 | . . . . . . . 2 . . . . Security Stations 1 | . . . . . . 1 . . . . . Fabricator Hacks 1 | . . . . . . . . . . . 1 Load Schematic 1 | . . . . . . . . . . . 1 Repair Station Hacks 8 | . . . . . . . 4 . . . 4 Scan Component 4 | . . . . . . . 2 . . . 2 Repair 4 | . . . . . . . 2 . . . 2 Recycling Unit Hacks 5 | . . . 1 . . . 2 . . . 2 Process 2 | . . . . . . . 1 . . . 1 Retrieve Matter 2 | . . . . . . . 1 . . . 1 Retrieve Components 1 | . . . 1 . . . . . . . . Scanalyzer 17 | . . . 8 . 2 . . . . . 7 Insert Component 9 | . . . 4 . 1 . . . . . 4 Analyze 8 | . . . 4 . 1 . . . . . 3 Garrison Access Hacks 1 | . . . . . 1 . . . . . . Unlock Access 1 | . . . . . 1 . . . . . . Unauthorized Hacks 9 | . 2 . 1 . . . 4 1 . . 1 Terminals 9 | . 2 . 1 . . . 4 1 . . 1 Assimilate 1 | . . . . . . . . 1 . . . Botnet 8 | . 2 . 1 . . . 4 . . . 1 Fabricators . | . . . . . . . . . . . . Repair Stations . | . . . . . . . . . . . . Recycling Units . | . . . . . . . . . . . . Scanalyzers . | . . . . . . . . . . . . Garrison Access . | . . . . . . . . . . . . Data Cores Recovered 1 | . . . . . . . 1 . . . . Used . | . . . . . . . . . . . . Hacking Detections 26 | . 2 . 6 . 2 . 8 3 . . 5 Full Trace Events 3 | . . . 2 . . . . . . . 1 Feedback Events . | . . . . . . . . . . . . Feedback Blocked . | . . . . . . . . . . . . Robot Schematics Acquired . | . . . . . . . . . . . . Robots Built . | . . . . . . . . . . . . Authchips . | . . . . . . . . . . . . Time . | . . . . . . . . . . . . Total Robot Build Rating . | . . . . . . . . . . . . Part Schematics Acquired 7 | . . . 4 . 1 . . . . . 2 Parts Built . | . . . . . . . . . . . . Authchips . | . . . . . . . . . . . . Time . | . . . . . . . . . . . . Total Part Build Rating . | . . . . . . . . . . . . Parts Repaired 4 | . . . . . . . 2 . . . 2 Time 104 | . . . . . . . 52 . . . 52 Parts Recycled . | . . . . . . . . . . . . Recycled Matter 49 | . . . . . . . 35 . . . 14 Retrieved Matter 49 | . . . . . . . 35 . . . 14 Retrieved Components 9 | . . . 9 . . . . . . . . Parts Scanalyzed 8 | . . . 4 . 1 . . . . . 3 Part Schematics Acquired 7 | . . . 4 . 1 . . . . . 2 Parts Damaged 2 | . . . . . . . . . . . 2 Bothacking | -11 -10 -10 -9 -9 -8 -8 -8 -7 -6 -6 -5 ------------ Run | Yrd Mat Min Mat Min Mat Gar Mat Fac Fac DSF Fac Used RIF Installer . | . . . . . . . . . . . . Robots Hacked . | . . . . . . . . . . . . Non-combat . | . . . . . . . . . . . . Combat . | . . . . . . . . . . . . Robot Hacks Applied . | . . . . . . . . . . . . Relay Couplers Released 5 | . . . . . . 5 . . . . . Machine Destruction 5 | . . . . . . 5 . . . . . Fabnet Peak Effective % . | . . . . . . . . . . . . Robots Rewired . | . . . . . . . . . . . . Allies Hacked . | . . . . . . . . . . . . Hacks Repelled . | . . . . . . . . . . . . Allies | -11 -10 -10 -9 -9 -8 -8 -8 -7 -6 -6 -5 -------- Run | Yrd Mat Min Mat Min Mat Gar Mat Fac Fac DSF Fac Total Allies 3 | . . . . 2 . . . 1 . . . Largest Group 2 | . . . . 2 . . . 1 . . . Highest-Rated Group 43 | . . . . 43 . . . 10 . . . Highest-Rated Ally 31 | . . . . 31 . . . 10 . . . Total Orders 2 | . . . . . . . . 2 . . . STAY 1 | . . . . . . . . 1 . . . FOLLOW 1 | . . . . . . . . 1 . . . Ally Attacks 12 | . . . . 12 . . . . . . . Total Damage 166 | . . . . 166 . . . . . . . Kills 1 | . . . . 1 . . . . . . . Allies Corrupted . | . . . . . . . . . . . . Allies Melted . | . . . . . . . . . . . . Intel | -11 -10 -10 -9 -9 -8 -8 -8 -7 -6 -6 -5 ------- Run | Yrd Mat Min Mat Min Mat Gar Mat Fac Fac DSF Fac Robot Analysis Total 1 | . . . 1 . . . . . . . . Derelict Logs Recovered 2 | . . 1 . 1 . . . . . . . Drone Launches . | . . . . . . . . . . . . Drone Recoveries . | . . . . . . . . . . . . Exploration | -11 -10 -10 -9 -9 -8 -8 -8 -7 -6 -6 -5 ------------- Run | Yrd Mat Min Mat Min Mat Gar Mat Fac Fac DSF Fac Turns Passed 3321 | 48 117 132 805 249 90 269 337 490 10 46 728 Spaces Moved 3572 | 32 93 106 479 177 64 337 342 604 28 70 1240 Core 14 | 14 . . . . . . . . . . . Treads . | . . . . . . . . . . . . Legs 755 | 18 93 106 479 59 . . . . . . . Wheels . | . . . . . . . . . . . . Hover . | . . . . . . . . . . . . Flight 2803 | . . . . 118 64 337 342 604 28 70 1240 Fastest Speed 23 | 50 120 120 120 32 27 27 25 23 25 25 25 Average Speed 46 | 119 120 120 120 61 27 28 25 23 25 25 26 Slowest Speed 200 | 200 120 120 120 120 27 37 37 25 25 26 30 Overloaded Moves . | . . . . . . . . . . . . Propulsion Burnouts . | . . . . . . . . . . . . Robots Hopped 17 | . . . . 1 . 2 3 2 . . 9 Cave-ins Triggered 1 | . . . . . . . . . . . 1 Exploration Rate (%) 30 | 4 24 28 37 38 11 46 49 20 1 86 25 Regions Visited 11 Branch Regions 2 Pre-discovered Areas . | . . . . . . . . . . . . Known Exits Taken 4 | . . . . . 1 . 1 1 1 . . Unknown Exits Taken 5 | 1 1 1 1 1 . . . . . . . Scrap Searched 1 | . . 1 . . . . . . . . . Spaces Dug 63 | . . . 12 . . 15 6 4 . . 26 Terrain Destroyed 236 | . . . 12 . 3 184 7 4 . . 26 Melee 54 | . . . 12 . . 6 6 4 . . 26 Projectile 1 | . . . . . . . 1 . . . . AOE 181 | . . . . . 3 178 . . . . . Terrain Rammed . | . . . . . . . . . . . . Walls Destroyed . | . . . . . . . . . . . . Machines Disabled . | . . . . . . . . . . . . Actions | -11 -10 -10 -9 -9 -8 -8 -8 -7 -6 -6 -5 --------- Run | Yrd Mat Min Mat Min Mat Gar Mat Fac Fac DSF Fac Total 4892 | 39 96 111 630 283 132 439 552 939 29 97 1545 Wait 992 | . . 5 86 79 62 37 170 310 . . 243 Move 3530 | 31 92 105 478 174 64 332 336 599 27 69 1223 Hop 15 | . . . . 1 . 2 2 2 . . 8 Pick Up 39 | 2 1 1 7 3 1 2 5 7 . 3 7 Fast Attach 28 | 6 1 . 4 1 . . 6 . . 3 7 Attach 29 | . . . 4 3 2 2 6 4 1 1 6 Detach 10 | . . . 4 . . . 4 . . . 2 Swap 18 | . . . 1 2 1 5 1 5 1 . 2 Drop 27 | . 1 . 4 3 . . 4 7 . 3 5 Fire 75 | . 1 . 29 16 2 19 8 . . . . Melee 94 | . . . 13 . . 24 10 5 . . 42 Ram . | . . . . . . . . . . . . Kick 1 | . . . . 1 . . . . . . . Crush . | . . . . . . . . . . . . Escape Stasis 34 | . . . . . . 16 . . . 18 . Rewire . | . . . . . . . . . . . . Trap . | . . . . . . . . . . . . Miscellaneous . | . . . . . . . . . . . . Route ------- -11/Scrapyard -10/Materials -10/Mines -9/Materials (discovered 2 exits: *Min / Sto) -9/Mines -8/Materials -8/Garrison -8/Materials (discovered 3 exits: *Fac x3) -7/Factory (discovered 4 exits: *Fac x4) -6/Factory -6/DSF -5/Factory History --------- Turn | Location | Event 16 | -11/Scrapyard | Discovered new exit (range 16) 49 | -11/Scrapyard | Entered Materials 148 | -10/Materials | Discovered new exit (range 16) 166 | -10/Materials | Entered Mines 173 | -10/Mines | Received a Rocket Launcher from a helpful Derelict 289 | -10/Mines | Learned location of 1 exit from Materials 296 | -10/Mines | Discovered new exit (range 3) 298 | -10/Mines | Entered Materials 298 | -9/Materials | Evolved 2 slots: Propulsion x1, Utility x1 299 | -9/Materials | Identified exit to Storage 317 | -9/Materials | Build established: Mutant 805 | -9/Materials | Discovered new exit (range 17) 903 | -9/Materials | Destroyed 7 combat bots 1103 | -9/Materials | Entered Mines 1206 | -9/Mines | Found the Drone Emporium 1268 | -9/Mines | A weapon hastily lodged in a ceiling crevice suddenly fell to the ground 1282 | -9/Mines | Learned Materials stockpile data 1349 | -9/Mines | Discovered new exit (range 4) 1352 | -9/Mines | Met a Derelict shopkeep closing up shop 1352 | -9/Mines | Entered Materials 1352 | -8/Materials | Evolved 2 slots: Propulsion x2 1442 | -8/Materials | Identified exit to Garrison 1442 | -8/Materials | Entered Garrison 1446 | -8/Garrison | Triggered checkpoint 1500 | -8/Garrison | Triggered checkpoint 1564 | -8/Garrison | Triggered checkpoint 1580 | -8/Garrison | Discovered new exit (range 14) 1627 | -8/Garrison | Phase Generator disabled 1652 | -8/Garrison | Learned Materials security intel 1653 | -8/Garrison | Build established: Scavenger-Sprinter 1673 | -8/Garrison | Garrison Relay disabled 1711 | -8/Garrison | Entered Materials 1740 | -8/Materials | Lost 6 parts (1p3n2w) 1874 | -8/Materials | Repaired Flight Unit 1902 | -8/Materials | Repaired Flight Unit? 2010 | -8/Materials | Identified exit to Factory 2048 | -8/Materials | Entered Factory 2048 | -7/Factory | Evolved 2 slots: Utility x2 2339 | -7/Factory | Build established: Sprinter 2467 | -7/Factory | Identified exit to Factory 2538 | -7/Factory | Entered another Factory area 2538 | -6/Factory | Evolved 2 slots: Power x1, Utility x1 2548 | -6/Factory | Identified exit to DSF 2548 | -6/Factory | Entered DSF 2567 | -6/DSF | Additional patrols routed to DSF 2568 | -6/DSF | Discovered new exit (range 14) 2594 | -6/DSF | Identified exit to Factory 2594 | -6/DSF | Entered Factory 2594 | -5/Factory | Evolved 2 slots: Utility x2 2796 | -5/Factory | Repaired Sml. Storage Unit 2937 | -5/Factory | Repaired Broken Cesium-ion Thruster 3110 | -5/Factory | Build established: Hacker-Sprinter 3217 | -5/Factory | Crushed by falling debris 3248 | -5/Factory | Lost 5 parts (1p4u) 3322 | -5/Factory | Self-destructed Last Messages --------------- 03218_ Relay Coupler [NC] fries itself. 03226_ K-01 Serf collects debris. 03231_ Connecting with Fabricator... >>Load(Lgt. Nuclear Core) Uploading Lgt. Nuclear Core schematic... Loaded successfully: Lgt. Nuclear Core Rating: 3 Time: 36 Initiate build sequence. 03231_ ALERT: Suspicious activity at Fabricator F001. Dispatching Investigation squad. 03246_ Subcomponent Replicator disabled. 03298_ Slug penetrates Wall. 03303_ Penetrated by Slug. 03303_ VTOL Module destroyed. 03303_ Slug penetrates Wall. 03303_ Remote Datajack destroyed. 03320_ Imp. Corruption Screen destroyed. 03321_ Xenon Bombardment Thruster destroyed. Map ----- +----------------------------------------------------+ | ?????????????????????????????????????????????????? | | ?????????????????????????????????????????????????? | | ?????????????????????????????????????????????????? | | ?????????????????????????????????????????????????? | | ?????????????????????????????????????????????????? | | ?????????????????????????????????????????????????? | | ?????????????????????????????????????????????????? | | ?????????????????????????????????????????????????? | | ?????????????????????????????????????????????????? | | ?????????????????????????????????????????????????? | | ???????????????????H?????????????????????????????? | | ?????????????????????????????????????????????????? | | ?????????????????????????????????????????????????? | | #####????????????????????????????????????????????? | | ????????????????????????????????????????????? | | ????????????????????????????????????????????? | | " " ????????????????????????????????????????????? | | " " ????????????????????????????????????????????? | | " " "???????????????????????????????????????????? | | " " "???????????????????????????????????????????? | | " " "???????????????????????????????????????????? | | " " "???????????????????????????????????????????? | | " " "??????????????????##############???????????? | | " " "??????????????????# #???????????? | | " " "???????????? ?## #???????????? | | ???????????# ?#;@ #???????????? | | ################# ### """ ????????????? | | ## #?# == """ #???????????? | | ## #?# == """ #???????????? | | ## #?# == #???????????? | | ## #?# """ #???????????? | | ## #?# """ #???????????? | | ## #?# """ #???????????? | | ## #?# #???????????? | | ## #?# #???????????? | | +#########+###### #####s######+###???????????? | | s #???????? | | s #???????? | | #???????? | | ^ ????????? | | ????????? | | ?????????? | | ????????? | | ##########+#######/############### ?????????? | | ?????????????????# ?????????????? ?????????? | | ?????????????????# ??????????????? ??????????? | | ?????????????????# ??????????????? ??????????? | | ?????????????????# "????????????????????????????? | | ?????????????????/ ""???????????????????????????? | | ?????????????????# ""???????????????????????????? | +----------------------------------------------------+ Best States ------------- Heat Dissipation 40 Energy Generation 24 Energy Capacity 250 Matter Stores 300 Matter Capacity 300 Sight Range 18 Robot Scan Range 16 Terrain Scan Density 10 ECM Strength 1 Jamming Range 12 Additional Mass Support 6 Corruption Block 15 Propulsion Shielding 66 Evasion (%) 73 Defensive Hacking 20 Authchip Count 2 Item Schematics ----------------- Flight Unit | -9/Materials | Scanalyzed Signal Interpreter | -9/Materials | Scanalyzed Rocket Launcher | -9/Materials | Scanalyzed VTOL Module | -9/Materials | Scanalyzed Lgt. Nuclear Core | -8/Materials | Scanalyzed Cesium-ion Thruster | -5/Factory | Scanalyzed Imp. System Restoration Module | -5/Factory | Scanalyzed Robot Schematics ------------------ None Fabricated ------------ Nothing Alien Tech Used ----------------- None Achievements -------------- Deadly Force Challenges ------------ None Game ------ Seed LaserGrapheneAutohacker Manual? 0 Play Time 01:56:09 Cumulative 38.3 hours Start 2025.02.23 @ 18:55:54 End 2025.02.28 @ 16:31:27 Sessions 3 Manual Loads 0 Difficulty Rogue Special Mode None Game No. 26 Rogue 26 Adventurer 0 Explorer 0 Win Type - Total 0 Types 0/0/0/0/0/0/0/0/0 Lore% 14 Gallery% 25 Achievement% 24 Wizard Run 0 Options --------- Layout 1 ASCII 0 Keyboard 0 Movement Mouse Keybinds 0 Fullscreen 1 Font 24/Smallcaps Map View 50x35 Zoom Use 0% Tactical HUD 1 Map Filters NONE Filters NONE Steam 1 RUN: 4f895ae9-a7c4-4c09-950b-20b64cb4395d